[Event "Early-Titled-Tuesday-Blitz-May-28-2024"]
[Site "Chess.com"]
[Date "2024.05.28"]
[Round "7"]
[White "martinmena"]
[Black "ChrisTool2"]
[Result "0-1"]
[WhiteElo "2140"]
[BlackElo "2386"]
[TimeControl "180+1"]
[EndTime "9:17:46 PDT"]
[Termination "ChrisTool2 won by checkmate"]

1. c4 {[%clk 0:03:00.9]} 1... Nf6 {[%clk 0:02:59.7]} 2. g3 {[%clk 0:02:58.4]}
2... e6 {[%clk 0:02:58.3]} 3. Bg2 {[%clk 0:02:56.9]} 3... d5 {[%clk 0:02:58.6]}
4. Nf3 {[%clk 0:02:54.9]} 4... Be7 {[%clk 0:02:59]} 5. O-O {[%clk 0:02:53.2]}
5... O-O {[%clk 0:02:59.6]} 6. d4 {[%clk 0:02:50.3]} 6... dxc4 {[%clk
0:02:57.6]} 7. Qc2 {[%clk 0:02:48.7]} 7... b5 {[%clk 0:02:51.7]} 8. Nc3 {[%clk
0:02:01]} 8... a6 {[%clk 0:02:27.7]} 9. Ne5 {[%clk 0:01:54.9]} 9... Qxd4 {[%clk
0:02:27.3]} 10. Bxa8 {[%clk 0:01:46.7]} 10... Qxe5 {[%clk 0:02:27.5]} 11. Bf4
{[%clk 0:01:42.2]} 11... Qc5 {[%clk 0:02:27.7]} 12. Ne4 {[%clk 0:01:38.7]} 12...
Nxe4 {[%clk 0:02:16.7]} 13. Bxe4 {[%clk 0:01:36.7]} 13... f5 {[%clk 0:02:15.7]}
14. Bg2 {[%clk 0:01:32.4]} 14... Nc6 {[%clk 0:02:14.9]} 15. Be3 {[%clk
0:01:26.5]} 15... Nd4 {[%clk 0:02:04]} 16. Bxd4 {[%clk 0:01:02.6]} 16... Qxd4
{[%clk 0:02:04.9]} 17. Rad1 {[%clk 0:00:56.8]} 17... Qc5 {[%clk 0:02:05.3]} 18.
b3 {[%clk 0:00:56.4]} 18... c3 {[%clk 0:02:01.2]} 19. e4 {[%clk 0:00:46.4]}
19... f4 {[%clk 0:01:55.3]} 20. Rd3 {[%clk 0:00:43.7]} 20... b4 {[%clk
0:01:53.7]} 21. gxf4 {[%clk 0:00:23.3]} 21... Rxf4 {[%clk 0:01:51.8]} 22. e5
{[%clk 0:00:20.5]} 22... Qxe5 {[%clk 0:01:45.6]} 23. Rfd1 {[%clk 0:00:18.6]}
23... Bd6 {[%clk 0:01:43.8]} 24. Rh3 {[%clk 0:00:18]} 24... g6 {[%clk
0:01:34.3]} 25. Qd3 {[%clk 0:00:08.5]} 25... Bd7 {[%clk 0:01:22]} 26. Re3 {[%clk
0:00:04]} 26... Qf6 {[%clk 0:01:15.6]} 27. Qe2 {[%clk 0:00:02.4]} 27... Bb5
{[%clk 0:01:03.1]} 28. Qe1 {[%clk 0:00:01.9]} 28... c2 {[%clk 0:01:02.6]} 29.
Rc1 {[%clk 0:00:01.8]} 29... Rh4 {[%clk 0:00:54.8]} 30. Rxc2 {[%clk 0:00:01.4]}
30... Bxh2+ {[%clk 0:00:52]} 31. Kh1 {[%clk 0:00:01.9]} 31... Bf4+ {[%clk
0:00:46.4]} 32. Rh3 {[%clk 0:00:01.9]} 32... e5 {[%clk 0:00:39.6]} 33. Rxh4
{[%clk 0:00:01]} 33... Qxh4+ {[%clk 0:00:40.5]} 34. Kg1 {[%clk 0:00:01.5]} 34...
Qh2# {[%clk 0:00:40.7]} 0-1

[Event "Early-Titled-Tuesday-Blitz-May-28-2024"]
[Site "Chess.com"]
[Date "2024.05.28"]
[Round "7"]
[White "Kostya0705"]
[Black "Witik"]
[Result "0-1"]
[WhiteElo "2591"]
[BlackElo "2796"]
[TimeControl "180+1"]
[EndTime "9:17:47 PDT"]
[Termination "Witik won by checkmate"]

1. e4 {[%clk 0:02:32.7]} 1... c6 {[%clk 0:02:59.3]} 2. d4 {[%clk 0:02:29.9]}
2... d5 {[%clk 0:02:59.7]} 3. e5 {[%clk 0:02:30.8]} 3... c5 {[%clk 0:02:59.7]}
4. dxc5 {[%clk 0:02:31.4]} 4... e6 {[%clk 0:02:59.9]} 5. Nf3 {[%clk 0:02:32.3]}
5... Bxc5 {[%clk 0:02:58.8]} 6. Bd3 {[%clk 0:02:33.2]} 6... Nc6 {[%clk
0:02:58.8]} 7. O-O {[%clk 0:02:33.3]} 7... f6 {[%clk 0:02:55.5]} 8. exf6 {[%clk
0:02:17.8]} 8... Nxf6 {[%clk 0:02:55.4]} 9. a3 {[%clk 0:02:18]} 9... a5 {[%clk
0:02:50.6]} 10. Nc3 {[%clk 0:02:15.1]} 10... O-O {[%clk 0:02:39.3]} 11. h3
{[%clk 0:02:11]} 11... Nh5 {[%clk 0:02:24.8]} 12. Re1 {[%clk 0:02:07.7]} 12...
Nf4 {[%clk 0:02:19.5]} 13. Bxf4 {[%clk 0:02:04.2]} 13... Rxf4 {[%clk 0:02:20.4]}
14. Qd2 {[%clk 0:02:03.6]} 14... Rxf3 {[%clk 0:02:13.6]} 15. gxf3 {[%clk
0:02:01.6]} 15... Qh4 {[%clk 0:02:00.9]} 16. Kg2 {[%clk 0:02:01.1]} 16... e5
{[%clk 0:01:51.1]} 17. Rh1 {[%clk 0:02:00.6]} 17... Be6 {[%clk 0:01:43.1]} 18.
Bf5 {[%clk 0:01:42.1]} 18... Nd4 {[%clk 0:01:20.2]} 19. Bxe6+ {[%clk 0:01:40]}
19... Nxe6 {[%clk 0:01:21.1]} 20. Nxd5 {[%clk 0:01:35.7]} 20... Rd8 {[%clk
0:01:20.4]} 21. c4 {[%clk 0:01:35.6]} 21... Qxc4 {[%clk 0:01:16.5]} 22. Ne3
{[%clk 0:01:21.3]} 22... Nf4+ {[%clk 0:00:50.8]} 23. Kg3 {[%clk 0:01:15.2]}
23... Rxd2 {[%clk 0:00:34.5]} 24. Nxc4 {[%clk 0:01:14.7]} 24... Bxf2+ {[%clk
0:00:17.3]} 25. Kg4 {[%clk 0:01:13.7]} 25... Rd4 {[%clk 0:00:16.8]} 26. b3
{[%clk 0:00:51.1]} 26... g6 {[%clk 0:00:15.9]} 27. Rad1 {[%clk 0:00:39.6]} 27...
Nd3+ {[%clk 0:00:13.5]} 28. Kg5 {[%clk 0:00:38.9]} 28... Kg7 {[%clk 0:00:07.7]}
29. f4 {[%clk 0:00:25]} 29... h6+ {[%clk 0:00:04.3]} 30. Kg4 {[%clk 0:00:24.1]}
30... Rxf4# {[%clk 0:00:05]} 0-1

[Event "Early-Titled-Tuesday-Blitz-May-28-2024"]
[Site "Chess.com"]
[Date "2024.05.28"]
[Round "7"]
[White "KNVB"]
[Black "shimastream"]
[Result "0-1"]
[WhiteElo "2766"]
[BlackElo "3033"]
[TimeControl "180+1"]
[EndTime "9:17:50 PDT"]
[Termination "shimastream won by resignation"]

1. e4 {[%clk 0:03:00.9]} 1... d5 {[%clk 0:02:58.9]} 2. a3 {[%clk 0:03:00.4]}
2... dxe4 {[%clk 0:02:57.1]} 3. Nc3 {[%clk 0:03:00.7]} 3... Nf6 {[%clk
0:02:57.1]} 4. Qe2 {[%clk 0:03:00.9]} 4... Nc6 {[%clk 0:02:53.1]} 5. Nxe4 {[%clk
0:03:01]} 5... Nd4 {[%clk 0:02:52.8]} 6. Nxf6+ {[%clk 0:03:01.1]} 6... gxf6
{[%clk 0:02:53.7]} 7. Qd1 {[%clk 0:03:01.9]} 7... Bf5 {[%clk 0:02:53]} 8. d3
{[%clk 0:03:02.2]} 8... h5 {[%clk 0:02:49.6]} 9. Nf3 {[%clk 0:02:53.9]} 9... Bg4
{[%clk 0:02:43]} 10. Be2 {[%clk 0:02:51.7]} 10... Nxe2 {[%clk 0:02:40.3]} 11.
Qxe2 {[%clk 0:02:52.6]} 11... Qd7 {[%clk 0:02:40.6]} 12. h3 {[%clk 0:02:51.5]}
12... Bf5 {[%clk 0:02:38.3]} 13. Be3 {[%clk 0:02:34.9]} 13... a5 {[%clk
0:02:18.2]} 14. O-O-O {[%clk 0:02:24.2]} 14... b5 {[%clk 0:02:08.7]} 15. Nd4
{[%clk 0:01:46.2]} 15... Bg6 {[%clk 0:02:06.5]} 16. Qf3 {[%clk 0:01:44.9]} 16...
Rc8 {[%clk 0:01:57.5]} 17. Qb7 {[%clk 0:01:09.6]} 17... c6 {[%clk 0:01:55.2]}
18. Qxd7+ {[%clk 0:00:53.4]} 18... Kxd7 {[%clk 0:01:56.1]} 19. Nb3 {[%clk
0:00:49.2]} 19... a4 {[%clk 0:01:51.2]} 20. Nc5+ {[%clk 0:00:49.1]} 20... Ke8
{[%clk 0:01:51.8]} 21. g4 {[%clk 0:00:43.8]} 21... f5 {[%clk 0:01:48.5]} 22. g5
{[%clk 0:00:38.1]} 22... h4 {[%clk 0:01:48.4]} 23. Rde1 {[%clk 0:00:03.9]} 23...
Rd8 {[%clk 0:01:38]} 24. d4 {[%clk 0:00:03.3]} 24... Bg7 {[%clk 0:01:20.1]} 25.
c3 {[%clk 0:00:03.6]} 25... Bh5 {[%clk 0:01:20.8]} 26. Rhg1 {[%clk 0:00:04]}
26... Bf3 {[%clk 0:01:19.1]} 27. Nd3 {[%clk 0:00:03.9]} 27... Be4 {[%clk
0:01:16.8]} 28. Kd2 {[%clk 0:00:03.6]} 28... e5 {[%clk 0:00:57.6]} 29. dxe5
{[%clk 0:00:02.5]} 29... Rxd3+ {[%clk 0:00:57.2]} 30. Kc1 {[%clk 0:00:02.8]}
30... Kd7 {[%clk 0:00:41.2]} 31. Bf4 {[%clk 0:00:02.5]} 31... Rf3 {[%clk
0:00:38.9]} 32. Be3 {[%clk 0:00:02.8]} 32... Bxe5 {[%clk 0:00:36.4]} 33. g6
{[%clk 0:00:03.3]} 33... fxg6 {[%clk 0:00:34.7]} 34. Rxg6 {[%clk 0:00:04.2]}
34... f4 {[%clk 0:00:34.7]} 35. Rd1+ {[%clk 0:00:04.3]} 35... Kc8 {[%clk
0:00:33.9]} 36. Re6 {[%clk 0:00:03.9]} 36... fxe3 {[%clk 0:00:34.2]} 37. Rxe5
{[%clk 0:00:04.3]} 37... exf2 {[%clk 0:00:33.6]} 0-1

[Event "Early-Titled-Tuesday-Blitz-May-28-2024"]
[Site "Chess.com"]
[Date "2024.05.28"]
[Round "7"]
[White "DenLaz"]
[Black "kleinebeer98"]
[Result "1-0"]
[WhiteElo "3116"]
[BlackElo "2960"]
[TimeControl "180+1"]
[EndTime "9:17:51 PDT"]
[Termination "DenLaz won on time"]

1. d4 {[%clk 0:03:00.9]} 1... d5 {[%clk 0:03:00.6]} 2. c4 {[%clk 0:03:00.9]}
2... Nc6 {[%clk 0:03:01.3]} 3. cxd5 {[%clk 0:03:00.4]} 3... Qxd5 {[%clk
0:03:02.2]} 4. e3 {[%clk 0:03:00.6]} 4... e5 {[%clk 0:03:02.9]} 5. Nc3 {[%clk
0:03:00.9]} 5... Bb4 {[%clk 0:03:03.7]} 6. a3 {[%clk 0:03:01.4]} 6... Bxc3+
{[%clk 0:03:04.1]} 7. bxc3 {[%clk 0:03:02.3]} 7... Qd6 {[%clk 0:03:04.5]} 8. d5
{[%clk 0:02:42.6]} 8... Nce7 {[%clk 0:03:01.8]} 9. c4 {[%clk 0:02:42.6]} 9... c6
{[%clk 0:02:55.3]} 10. Bb2 {[%clk 0:02:35.7]} 10... cxd5 {[%clk 0:02:45.9]} 11.
cxd5 {[%clk 0:02:34.5]} 11... Nf6 {[%clk 0:02:21.5]} 12. Nf3 {[%clk 0:02:33.6]}
12... e4 {[%clk 0:02:12.1]} 13. Bxf6 {[%clk 0:02:29.2]} 13... Qxf6 {[%clk
0:02:05.2]} 14. Bb5+ {[%clk 0:02:29.3]} 14... Kf8 {[%clk 0:01:52.9]} 15. Nd4
{[%clk 0:02:28.7]} 15... Nxd5 {[%clk 0:01:48.2]} 16. O-O {[%clk 0:02:27.9]}
16... Be6 {[%clk 0:01:46.8]} 17. Bc4 {[%clk 0:02:21.4]} 17... Rd8 {[%clk
0:01:45.5]} 18. Qb3 {[%clk 0:02:20.7]} 18... Nf4 {[%clk 0:01:19.9]} 19. Nxe6+
{[%clk 0:02:12.5]} 19... Nxe6 {[%clk 0:01:20.8]} 20. Qxb7 {[%clk 0:02:12.6]}
20... g6 {[%clk 0:01:07]} 21. Qxe4 {[%clk 0:02:08.5]} 21... Kg7 {[%clk
0:01:06.4]} 22. Bxe6 {[%clk 0:01:48.2]} 22... Qxe6 {[%clk 0:01:07.3]} 23. Qxe6
{[%clk 0:01:48.1]} 23... fxe6 {[%clk 0:01:08.2]} 24. Rac1 {[%clk 0:01:48.3]}
24... Rd7 {[%clk 0:01:07]} 25. Rc6 {[%clk 0:01:47]} 25... Kf6 {[%clk 0:01:05]}
26. g3 {[%clk 0:01:45.3]} 26... Rb8 {[%clk 0:01:00.8]} 27. Ra6 {[%clk
0:01:45.8]} 27... Rb6 {[%clk 0:00:58.9]} 28. Ra4 {[%clk 0:01:45]} 28... g5
{[%clk 0:00:50.4]} 29. Rc1 {[%clk 0:01:42.9]} 29... Rb2 {[%clk 0:00:45.6]} 30.
Rc8 {[%clk 0:01:36.7]} 30... Rd1+ {[%clk 0:00:33.5]} 31. Kg2 {[%clk 0:01:36.1]}
31... Rdd2 {[%clk 0:00:34.4]} 32. Rf8+ {[%clk 0:01:36.3]} 32... Ke7 {[%clk
0:00:24.1]} 33. Rf3 {[%clk 0:01:36.3]} 33... Rb7 {[%clk 0:00:18]} 34. h4 {[%clk
0:01:36.7]} 34... h6 {[%clk 0:00:16.7]} 35. hxg5 {[%clk 0:01:36.7]} 35... hxg5
{[%clk 0:00:17.6]} 36. Ra5 {[%clk 0:01:35.2]} 36... Rd5 {[%clk 0:00:07.1]} 37.
Rxd5 {[%clk 0:01:35.1]} 37... exd5 {[%clk 0:00:08]} 38. Rf5 {[%clk 0:01:35.8]}
38... Ke6 {[%clk 0:00:08.9]} 39. Rxg5 {[%clk 0:01:36.1]} 39... a5 {[%clk
0:00:08.2]} 40. Rg6+ {[%clk 0:01:35.9]} 40... Kf5 {[%clk 0:00:08.4]} 41. Ra6
{[%clk 0:01:36.5]} 41... Rb5 {[%clk 0:00:08.8]} 42. Kf3 {[%clk 0:01:36.6]} 42...
d4 {[%clk 0:00:09]} 43. g4+ {[%clk 0:01:31.8]} 43... Kg5 {[%clk 0:00:07.6]} 44.
exd4 {[%clk 0:01:31.9]} 44... Rb3+ {[%clk 0:00:07.6]} 45. Ke4 {[%clk 0:01:32.6]}
45... Rxa3 {[%clk 0:00:07.8]} 46. f3 {[%clk 0:01:31.8]} 46... Ra1 {[%clk
0:00:07.1]} 47. d5 {[%clk 0:01:32.1]} 47... a4 {[%clk 0:00:05.4]} 48. d6 {[%clk
0:01:30.7]} 48... Kf6 {[%clk 0:00:03.5]} 49. f4 {[%clk 0:01:19.6]} 49... a3
{[%clk 0:00:03.5]} 50. g5+ {[%clk 0:01:19.9]} 50... Ke6 {[%clk 0:00:03.5]} 51.
f5+ {[%clk 0:01:19.8]} 51... Kd7 {[%clk 0:00:04.3]} 52. Ke5 {[%clk 0:01:20.5]}
52... a2 {[%clk 0:00:01.9]} 53. Kf6 {[%clk 0:01:21]} 53... Rd1 {[%clk
0:00:02.6]} 54. Rxa2 {[%clk 0:01:20.5]} 54... Rd2 {[%clk 0:00:01.8]} 55. Rxd2
{[%clk 0:01:20.1]} 1-0

[Event "Early-Titled-Tuesday-Blitz-May-28-2024"]
[Site "Chess.com"]
[Date "2024.05.28"]
[Round "7"]
[White "jumpingknight20"]
[Black "Azeryahu"]
[Result "0-1"]
[WhiteElo "2791"]
[BlackElo "2940"]
[TimeControl "180+1"]
[EndTime "9:17:51 PDT"]
[Termination "Azeryahu won by checkmate"]

1. e4 {[%clk 0:03:00.9]} 1... e5 {[%clk 0:02:59.7]} 2. Nf3 {[%clk 0:03:00.7]}
2... Nc6 {[%clk 0:03:00.2]} 3. Bc4 {[%clk 0:03:00.7]} 3... Nf6 {[%clk
0:02:59.9]} 4. d3 {[%clk 0:03:00.6]} 4... d5 {[%clk 0:03:00]} 5. exd5 {[%clk
0:03:00]} 5... Nxd5 {[%clk 0:03:00.9]} 6. O-O {[%clk 0:03:00.5]} 6... Nb6 {[%clk
0:03:01.3]} 7. Bb3 {[%clk 0:02:54]} 7... Bg4 {[%clk 0:03:01.1]} 8. Re1 {[%clk
0:02:54]} 8... Qe7 {[%clk 0:03:01.5]} 9. h3 {[%clk 0:02:48.8]} 9... Bh5 {[%clk
0:02:57.1]} 10. a4 {[%clk 0:02:26.7]} 10... a5 {[%clk 0:02:51.6]} 11. g4 {[%clk
0:02:16.6]} 11... Bg6 {[%clk 0:02:50.9]} 12. Nxe5 {[%clk 0:02:14.6]} 12... Nxe5
{[%clk 0:02:49]} 13. Kg2 {[%clk 0:01:47.1]} 13... O-O-O {[%clk 0:01:39.3]} 14.
f4 {[%clk 0:01:43.8]} 14... f6 {[%clk 0:01:39.7]} 15. fxe5 {[%clk 0:01:37.6]}
15... fxe5 {[%clk 0:01:40.6]} 16. Nc3 {[%clk 0:01:31.6]} 16... h5 {[%clk
0:01:34.9]} 17. Be3 {[%clk 0:01:15.2]} 17... Kb8 {[%clk 0:01:31.4]} 18. Bxb6
{[%clk 0:01:02.6]} 18... cxb6 {[%clk 0:01:31.7]} 19. Qe2 {[%clk 0:01:00.1]}
19... hxg4 {[%clk 0:01:26.8]} 20. hxg4 {[%clk 0:00:56.3]} 20... Rd4 {[%clk
0:01:22.6]} 21. Nd5 {[%clk 0:00:15.7]} 21... Qh4 {[%clk 0:00:36.8]} 22. Qxe5+
{[%clk 0:00:15.4]} 22... Ka7 {[%clk 0:00:37.4]} 23. Ne3 {[%clk 0:00:14.4]} 23...
Bd6 {[%clk 0:00:21.1]} 24. Qxd4 {[%clk 0:00:09.5]} 24... Qg3+ {[%clk 0:00:21.4]}
25. Kf1 {[%clk 0:00:07.9]} 25... Rh2 {[%clk 0:00:22]} 26. Qxb6+ {[%clk
0:00:03.1]} 26... Kxb6 {[%clk 0:00:20.3]} 27. Nc4+ {[%clk 0:00:04]} 27... Ka7
{[%clk 0:00:20.8]} 28. Re3 {[%clk 0:00:04.2]} 28... Qf2# {[%clk 0:00:20.3]} 0-1

[Event "Early-Titled-Tuesday-Blitz-May-28-2024"]
[Site "Chess.com"]
[Date "2024.05.28"]
[Round "7"]
[White "alex1531"]
[Black "gabduschew"]
[Result "1-0"]
[WhiteElo "2444"]
[BlackElo "2311"]
[TimeControl "180+1"]
[EndTime "9:17:51 PDT"]
[Termination "alex1531 won by resignation"]

1. e4 {[%clk 0:02:51.7]} 1... e5 {[%clk 0:02:58.4]} 2. Nf3 {[%clk 0:02:43.9]}
2... d5 {[%clk 0:02:57.5]} 3. d4 {[%clk 0:02:37.7]} 3... dxe4 {[%clk 0:02:57.4]}
4. Nxe5 {[%clk 0:02:36.8]} 4... Bd6 {[%clk 0:02:58]} 5. Nc4 {[%clk 0:02:32.2]}
5... Nf6 {[%clk 0:02:58]} 6. Nxd6+ {[%clk 0:02:30.5]} 6... Qxd6 {[%clk
0:02:57.9]} 7. h3 {[%clk 0:02:25.4]} 7... O-O {[%clk 0:02:57.3]} 8. Nc3 {[%clk
0:02:20.8]} 8... a6 {[%clk 0:02:56.9]} 9. Be3 {[%clk 0:02:21]} 9... Bf5 {[%clk
0:02:56.4]} 10. Be2 {[%clk 0:02:13.6]} 10... Nc6 {[%clk 0:02:38]} 11. Qd2 {[%clk
0:02:10.8]} 11... Rfd8 {[%clk 0:02:35.2]} 12. O-O-O {[%clk 0:02:09.2]} 12... b5
{[%clk 0:02:21.2]} 13. g4 {[%clk 0:02:08.9]} 13... Bg6 {[%clk 0:02:20.9]} 14. h4
{[%clk 0:01:54.1]} 14... h6 {[%clk 0:01:54]} 15. g5 {[%clk 0:01:22.1]} 15...
hxg5 {[%clk 0:01:53.7]} 16. hxg5 {[%clk 0:01:20.4]} 16... Nd5 {[%clk 0:01:52.8]}
17. Nxd5 {[%clk 0:01:20.8]} 17... Qxd5 {[%clk 0:01:52.9]} 18. Kb1 {[%clk
0:01:12.5]} 18... a5 {[%clk 0:01:49]} 19. Qc3 {[%clk 0:01:01.2]} 19... Nb4
{[%clk 0:01:19]} 20. b3 {[%clk 0:00:44.9]} 20... c6 {[%clk 0:01:10.7]} 21. a3
{[%clk 0:00:16.2]} 21... Na6 {[%clk 0:01:10.7]} 22. Bf4 {[%clk 0:00:14.9]} 22...
b4 {[%clk 0:01:07.7]} 23. Qh3 {[%clk 0:00:14.7]} 23... Kf8 {[%clk 0:01:03.5]}
24. Qh8+ {[%clk 0:00:13.4]} 24... Ke7 {[%clk 0:01:03.9]} 25. Qxg7 {[%clk
0:00:14.3]} 25... e3 {[%clk 0:00:31.9]} 26. Qf6+ {[%clk 0:00:12.8]} 26... Kd7
{[%clk 0:00:31.3]} 27. Bg4+ {[%clk 0:00:13.3]} 1-0

[Event "Early-Titled-Tuesday-Blitz-May-28-2024"]
[Site "Chess.com"]
[Date "2024.05.28"]
[Round "7"]
[White "Connectedcloud"]
[Black "Larina_Maria"]
[Result "1-0"]
[WhiteElo "2215"]
[BlackElo "2369"]
[TimeControl "180+1"]
[EndTime "9:17:51 PDT"]
[Termination "Connectedcloud won by checkmate"]

1. e4 {[%clk 0:03:00]} 1... c6 {[%clk 0:02:54.7]} 2. d4 {[%clk 0:02:59.5]} 2...
d5 {[%clk 0:02:54]} 3. exd5 {[%clk 0:02:58.6]} 3... cxd5 {[%clk 0:02:54.1]} 4.
Nf3 {[%clk 0:02:59.1]} 4... Nc6 {[%clk 0:02:53.6]} 5. Bd3 {[%clk 0:02:57.4]}
5... Bg4 {[%clk 0:02:51.6]} 6. c3 {[%clk 0:02:56.1]} 6... e6 {[%clk 0:02:51.3]}
7. O-O {[%clk 0:02:56.5]} 7... Nf6 {[%clk 0:02:50.8]} 8. Nbd2 {[%clk 0:02:56.8]}
8... Bd6 {[%clk 0:02:50.6]} 9. Re1 {[%clk 0:02:57]} 9... O-O {[%clk 0:02:50.5]}
10. a4 {[%clk 0:02:56.7]} 10... a5 {[%clk 0:02:50.4]} 11. Qc2 {[%clk 0:02:45.5]}
11... Rc8 {[%clk 0:02:50]} 12. Ne5 {[%clk 0:02:40.2]} 12... Nxd4 {[%clk
0:02:37.3]} 13. cxd4 {[%clk 0:02:37.1]} 13... Rxc2 {[%clk 0:02:36.3]} 14. Bxc2
{[%clk 0:02:38]} 14... Bh5 {[%clk 0:02:20.2]} 15. Bd3 {[%clk 0:02:31.3]} 15...
Bg6 {[%clk 0:02:19.1]} 16. Nxg6 {[%clk 0:02:29.6]} 16... hxg6 {[%clk 0:02:20]}
17. Nf3 {[%clk 0:02:28.5]} 17... Qb6 {[%clk 0:02:16.6]} 18. Bb5 {[%clk
0:02:25.7]} 18... Rc8 {[%clk 0:02:14.4]} 19. Be3 {[%clk 0:02:24]} 19... Ne4
{[%clk 0:02:14]} 20. Rac1 {[%clk 0:02:24]} 20... Qd8 {[%clk 0:02:07.7]} 21. Nd2
{[%clk 0:02:18.6]} 21... Rxc1 {[%clk 0:01:47.7]} 22. Rxc1 {[%clk 0:02:17.2]}
22... Qh4 {[%clk 0:01:41.8]} 23. g3 {[%clk 0:02:13.1]} 23... Qf6 {[%clk
0:01:23.8]} 24. Nxe4 {[%clk 0:02:08.6]} 24... dxe4 {[%clk 0:01:24.7]} 25. Rc8+
{[%clk 0:02:05.4]} 25... Kh7 {[%clk 0:01:24.2]} 26. h4 {[%clk 0:01:57.7]} 26...
Qf3 {[%clk 0:01:12.5]} 27. Rc3 {[%clk 0:01:57.3]} 27... Bb4 {[%clk 0:01:07.4]}
28. Rc1 {[%clk 0:01:52.5]} 28... Bd6 {[%clk 0:00:55.5]} 29. Rc3 {[%clk
0:01:49.1]} 29... Qd1+ {[%clk 0:00:54.9]} 30. Kg2 {[%clk 0:01:47.8]} 30... Qb1
{[%clk 0:00:50.6]} 31. Rc8 {[%clk 0:01:23.6]} 31... Qxb2 {[%clk 0:00:45.8]} 32.
Rd8 {[%clk 0:01:23.7]} 32... Bb4 {[%clk 0:00:24.4]} 33. Rd7 {[%clk 0:01:22.6]}
33... Bd2 {[%clk 0:00:17.6]} 34. Bxd2 {[%clk 0:01:15.9]} 34... Qxd2 {[%clk
0:00:18.5]} 35. Rxf7 {[%clk 0:01:15.3]} 35... Qxd4 {[%clk 0:00:17.8]} 36. Rf4
{[%clk 0:01:15.7]} 36... Qd5 {[%clk 0:00:17]} 37. Kh2 {[%clk 0:01:14.4]} 37...
e5 {[%clk 0:00:14.3]} 38. Rf8 {[%clk 0:01:13.4]} 38... Qd2 {[%clk 0:00:12.4]}
39. Kh3 {[%clk 0:01:07.4]} 39... e3 {[%clk 0:00:11.9]} 40. fxe3 {[%clk
0:01:06.6]} 40... Qxe3 {[%clk 0:00:12.8]} 41. Bc4 {[%clk 0:01:05.2]} 41... e4
{[%clk 0:00:10.3]} 42. Bg8+ {[%clk 0:01:04.9]} 42... Kh6 {[%clk 0:00:11]} 43.
Be6 {[%clk 0:01:04]} 43... g5 {[%clk 0:00:09.3]} 44. h5 {[%clk 0:00:48.8]} 44...
Qe2 {[%clk 0:00:07.6]} 45. Rh8# {[%clk 0:00:47.8]} 1-0

[Event "Early-Titled-Tuesday-Blitz-May-28-2024"]
[Site "Chess.com"]
[Date "2024.05.28"]
[Round "7"]
[White "GlavkonVVS"]
[Black "Shivananda1964"]
[Result "1-0"]
[WhiteElo "2578"]
[BlackElo "2400"]
[TimeControl "180+1"]
[EndTime "9:17:52 PDT"]
[Termination "GlavkonVVS won by checkmate"]

1. c4 {[%clk 0:03:00.9]} 1... e5 {[%clk 0:02:58.7]} 2. Nc3 {[%clk 0:02:59]} 2...
Nf6 {[%clk 0:02:58.3]} 3. g3 {[%clk 0:02:59]} 3... d5 {[%clk 0:02:57.8]} 4. cxd5
{[%clk 0:02:58.5]} 4... Nxd5 {[%clk 0:02:58.5]} 5. Bg2 {[%clk 0:02:59]} 5... Nb6
{[%clk 0:02:58.9]} 6. Nf3 {[%clk 0:02:59.5]} 6... Nc6 {[%clk 0:02:58.9]} 7. O-O
{[%clk 0:02:57.2]} 7... Be7 {[%clk 0:02:59.2]} 8. a3 {[%clk 0:02:53.8]} 8... O-O
{[%clk 0:02:57.7]} 9. b4 {[%clk 0:02:52.8]} 9... a5 {[%clk 0:02:57.3]} 10. b5
{[%clk 0:02:52.1]} 10... Nd4 {[%clk 0:02:57.5]} 11. Nxe5 {[%clk 0:02:47]} 11...
Bf6 {[%clk 0:02:44.8]} 12. f4 {[%clk 0:02:26.9]} 12... Be6 {[%clk 0:02:35.7]}
13. Rb1 {[%clk 0:02:24.9]} 13... a4 {[%clk 0:02:22]} 14. e3 {[%clk 0:02:14.7]}
14... Bb3 {[%clk 0:01:33.4]} 15. Qg4 {[%clk 0:02:12.3]} 15... Bxe5 {[%clk
0:00:31.7]} 16. fxe5 {[%clk 0:02:11.3]} 16... Ne6 {[%clk 0:00:27.3]} 17. Bxb7
{[%clk 0:02:04.5]} 17... g6 {[%clk 0:00:07.9]} 18. d4 {[%clk 0:02:00.9]} 18...
h5 {[%clk 0:00:06.1]} 19. Qf3 {[%clk 0:01:55.6]} 19... Rb8 {[%clk 0:00:05.2]}
20. Bc6 {[%clk 0:01:45.5]} 20... Nc4 {[%clk 0:00:05.1]} 21. Nd5 {[%clk
0:01:40.2]} 21... Kg7 {[%clk 0:00:04.4]} 22. Nf6 {[%clk 0:01:38.3]} 22... Ng5
{[%clk 0:00:04.1]} 23. Qg2 {[%clk 0:01:37.2]} 23... Qe7 {[%clk 0:00:03.2]} 24.
h4 {[%clk 0:01:35.3]} 24... Ne6 {[%clk 0:00:02.9]} 25. g4 {[%clk 0:01:31.2]}
25... hxg4 {[%clk 0:00:02.3]} 26. Qxg4 {[%clk 0:01:31.2]} 26... Rh8 {[%clk
0:00:03.1]} 27. h5 {[%clk 0:01:31.4]} 27... Rh6 {[%clk 0:00:02.4]} 28. e4 {[%clk
0:01:28.8]} 28... Rbh8 {[%clk 0:00:02.2]} 29. Bxh6+ {[%clk 0:01:28.2]} 29...
Rxh6 {[%clk 0:00:01.8]} 30. Nd5 {[%clk 0:01:00.4]} 30... Qd8 {[%clk 0:00:01]}
31. Rxf7+ {[%clk 0:00:53.5]} 31... Kxf7 {[%clk 0:00:01]} 32. Rf1+ {[%clk
0:00:53.8]} 32... Kg7 {[%clk 0:00:01.5]} 33. Rf6 {[%clk 0:00:48.7]} 33... Ne3
{[%clk 0:00:01.4]} 34. Qxe6 {[%clk 0:00:47.3]} 34... Rxh5 {[%clk 0:00:01]} 35.
Rxg6+ {[%clk 0:00:38.9]} 35... Kh7 {[%clk 0:00:00.7]} 36. Qf7+ {[%clk
0:00:38.6]} 36... Kh8 {[%clk 0:00:00.9]} 37. Qg7# {[%clk 0:00:39.4]} 1-0